bitfinex/quotes_SOLUSD_20250313
["timestamp","ask_amount","ask_price","bid_price","bid_amount"]
[1741874905993,57.47222336,124.97,124.9,211.84]
[1741874906194,0.03,124.97,124.93,57.44222336]
[1741874906693,0.03,124.97,124.95,57.44222336]
[1741874906881,0.03,124.97,124.94,57.7265465]
[1741874907288,0.03,124.97,124.95,57.44222336]
[1741874907492,0.03,124.97,124.94,57.44222336]
[1741874907904,0.03,124.97,124.96,57.44222336]
[1741874908274,0.03,124.97,124.93,57.44222336]
[1741874908892,0.03,124.97,124.94,57.44222336]
[1741874909683,0.03,124.97,124.93,57.44222336]
[1741874909898,0.03,124.97,124.92,76.37619536]
[1741874910094,57.44222336,124.96,124.91,57.44222336]
[1741874910692,0.03,124.97,124.92,57.44222336]
[1741874910988,65.47412336,124.97,124.92,57.44222336]
[1741874911180,65.47412336,124.97,124.91,76.23403379]
[1741874911376,0.03,124.97,124.93,76.23403379]
[1741874911576,0.03,124.97,124.93,76.37619536]
[1741874911776,0.03,124.97,124.93,18.933972]
[1741874912010,0.03,124.97,124.95,57.44222336]
[1741874912476,0.03,124.97,124.94,57.44222336]
[1741874912682,0.03,124.97,124.93,57.44222336]
[1741874912987,57.44222336,124.96,124.9,57.44222336]
[1741874913578,57.44222336,124.94,124.89,57.44222336]
[1741874914078,57.44222336,124.94,124.87,8.0081]
[1741874914283,57.44222336,124.93,124.87,57.44222336]
[1741874914485,57.44222336,124.92,124.86,57.44222336]
[1741874914693,57.44222336,124.91,124.85,269.20222336]
[1741874914892,65.44932336,124.89,124.83,0.063]
[1741874915230,20.0,124.9,124.85,57.44222336]
[1741874915407,77.44222336,124.9,124.84,57.44222336]
[1741874915582,57.44222336,124.89,124.84,57.44222336]
[1741874915782,77.44222336,124.9,124.84,57.44222336]
[1741874915991,57.44222336,124.89,124.83,76.43919536]
[1741874916203,77.44222336,124.9,124.84,57.44222336]
[1741874916701,77.44222336,124.9,124.84,65.45232336]
[1741874917281,77.44222336,124.9,124.85,57.44222336]
[1741874917709,77.44222336,124.9,124.84,65.45232336]
[1741874918586,57.44222336,124.89,124.83,65.8001465]
[1741874919086,57.44222336,124.89,124.84,57.44222336]
[1741874919691,57.44222336,124.89,124.83,65.51582336]
[1741874919899,57.44222336,124.87,124.83,0.063]
[1741874920095,8.0071,124.89,124.83,0.063]
[1741874920096,57.44222336,124.86,124.83,0.063]
[1741874920409,140.04222336,124.88,124.83,8.0738]
[1741874920705,148.04992336,124.88,124.83,0.063]
[1741874920910,57.44222336,124.86,124.83,0.063]
[1741874921105,57.44222336,124.85,124.83,0.063]
[1741874921298,96.9231,124.88,124.83,0.063]
[1741874921692,57.44222336,124.87,124.83,0.063]
[1741874922804,65.45062336,124.87,124.83,0.063]
[1741874923115,57.44222336,124.87,124.83,0.063]
[1741874923300,65.45062336,124.87,124.83,0.063]
[1741874923788,65.45072336,124.87,124.83,0.063]
[1741874923988,57.44222336,124.87,124.83,0.063]
[1741874924189,154.36552336,124.88,124.83,0.063]
[1741874924385,82.6,124.88,124.84,57.44222336]
[1741874924606,82.6,124.88,124.85,57.44222336]
[1741874924788,82.6,124.88,124.85,65.45142336]
[1741874925205,57.44222336,124.9,124.85,8.0092]
[1741874925401,1.5742,124.91,124.85,8.0092]
[1741874925602,84.2113,124.95,124.9,57.44222336]
[1741874925805,0.03,124.97,124.94,57.44222336]
[1741874926110,0.03,124.97,124.95,57.44222336]
[1741874926411,0.03,124.97,124.96,76.37619536]
[1741874926798,0.03,124.97,124.95,57.44222336]
[1741874927004,0.03,124.97,124.94,8.0038]
[1741874927202,57.47222336,124.97,124.91,26.939672]
[1741874927405,57.44222336,124.95,124.9,66.92222336]
[1741874927603,57.44222336,124.94,124.9,9.48]
[1741874927815,57.44222336,124.94,124.89,8.0065]
[1741874927993,57.44222336,124.94,124.88,296.24359536]
[1741874928497,57.44222336,124.95,124.89,57.44222336]
[1741874928698,8.0033,124.95,124.88,238.801372]
[1741874928907,57.44222336,124.95,124.89,57.44222336]
[1741874929610,149.65342336,124.96,124.9,57.44222336]
[1741874929812,57.44222336,124.95,124.89,57.44222336]
[1741874930795,57.44222336,124.95,124.89,65.44922336]
[1741874931701,57.44222336,124.94,124.89,57.44222336]
[1741874932311,57.44222336,124.94,124.88,57.44222336]
[1741874932616,57.44222336,124.93,124.87,84.24223379]
[1741874932804,57.44222336,124.94,124.88,57.44222336]
[1741874933494,57.44222336,124.94,124.87,338.80001043]
[1741874933694,57.44222336,124.94,124.88,57.44222336]
[1741874934100,57.44222336,124.91,124.86,8.0087]
[1741874934303,57.44222336,124.92,124.86,65.45092336]
[1741874934495,57.44222336,124.94,124.88,57.44222336]
[1741874934704,8.0032,124.95,124.89,57.44222336]
[1741874934925,57.44222336,124.94,124.89,0.14216157]
[1741874935122,148.04542336,124.95,124.89,57.44222336]
[1741874935304,57.44222336,124.94,124.88,57.58438493]
[1741874935504,57.44222336,124.93,124.87,57.44222336]
[1741874936005,57.44222336,124.93,124.88,57.44222336]
[1741874936199,65.44672336,124.93,124.88,57.44222336]
[1741874936408,65.44672336,124.93,124.87,65.45002336]
[1741874936607,57.44222336,124.92,124.87,8.0078]
[1741874937315,65.44672336,124.93,124.87,65.45002336]
[1741874937522,82.6,124.95,124.88,57.44222336]
[1741874937734,82.6,124.94,124.9,57.44222336]
[1741874937912,140.04222336,124.94,124.89,57.44222336]
[1741874938211,90.6038,124.94,124.88,57.44222336]
[1741874938400,57.44222336,124.92,124.86,65.59328493]
[1741874938931,57.44222336,124.93,124.87,57.44222336]
[1741874939228,57.44222336,124.92,124.87,57.44222336]
[1741874939416,57.44222336,124.93,124.87,57.44222336]
[1741874939622,57.44222336,124.92,124.87,57.44222336]
[1741874939826,57.44222336,124.92,124.86,65.59328493]
[1741874940200,65.44742336,124.92,124.86,65.45112336]
[1741874940405,38.27669406,124.9,124.85,8.0096]
[1741874940600,38.27669406,124.88,124.84,0.063]
[1741874940809,38.27669406,124.85,124.84,0.063]
[1741874941223,20.0,124.85,124.84,0.063]
[1741874941431,38.27669406,124.85,124.84,0.063]
[1741874942321,46.28629406,124.85,124.84,0.063]
[1741874942918,8.0096,124.85,124.84,0.063]
[1741874943228,46.28629406,124.85,124.84,0.063]
[1741874943427,46.28629406,124.85,124.83,0.063]
[1741874943635,38.27669406,124.84,124.83,0.063]
[1741874944704,38.27669406,124.85,124.83,0.063]
[1741874944910,6.0372,124.86,124.83,0.063]
[1741874944911,38.27669406,124.84,124.83,0.063]
[1741874945519,82.6,124.87,124.83,0.063]
[1741874945725,120.87669406,124.87,124.83,0.063]
[1741874945907,38.27669406,124.86,124.83,0.063]
[1741874946103,1.6481,124.88,124.84,38.41885563]
[1741874946340,82.6,124.92,124.87,38.27669406]
[1741874946830,120.87669406,124.92,124.86,38.27669406]
[1741874947036,38.27669406,124.91,124.86,38.27669406]
[1741874947337,38.27669406,124.91,124.85,46.28629406]
[1741874947907,90.6052,124.92,124.86,38.27669406]
[1741874947908,82.6,124.92,124.86,38.27669406]
[1741874948132,82.6,124.92,124.88,38.27669406]
[1741874948313,82.6,124.92,124.88,57.38492063]
[1741874948517,1.521,124.93,124.89,65.39192063]
[1741874948717,1.521,124.93,124.89,8.007]
[1741874948927,57.38492063,124.91,124.86,66.72492063]
[1741874949130,57.38492063,124.9,124.86,9.34]
[1741874949332,57.38492063,124.9,124.86,17.3488]
[1741874949520,82.6,124.92,124.84,0.28432314]
[1741874949521,57.38492063,124.89,124.84,57.38492063]
[1741874949724,82.6,124.92,124.84,57.38492063]
[1741874949921,57.38492063,124.89,124.84,57.38492063]
[1741874950112,57.38492063,124.88,124.83,0.063]
[1741874950312,57.38492063,124.88,124.83,57.44792063]
[1741874950527,82.6,124.91,124.84,0.14216157]
[1741874950528,57.38492063,124.89,124.84,0.14216157]
[1741874950837,82.6,124.91,124.86,57.38492063]
[1741874951039,82.6,124.91,124.88,57.38492063]
[1741874951240,58.90592063,124.93,124.87,57.38492063]
[1741874951536,9.5255,124.93,124.88,57.38492063]
[1741874951739,66.91042063,124.93,124.88,57.38492063]
[1741874952044,66.91042063,124.93,124.87,369.5270822]
[1741874952209,58.90592063,124.93,124.87,57.5270822]
[1741874952414,66.91042063,124.93,124.87,57.5270822]
[1741874952821,58.90592063,124.93,124.87,57.5270822]
[1741874953030,1.521,124.93,124.87,57.5270822]
[1741874953322,1.521,124.93,124.87,0.14216157]
[1741874953530,58.90592063,124.93,124.88,57.38492063]
[1741874953740,8.0038,124.94,124.88,57.38492063]
[1741874953741,82.6,124.95,124.9,57.38492063]
[1741874953933,139.98492063,124.95,124.9,57.38492063]
[1741874954133,57.38492063,124.94,124.88,57.5270822]
[1741874954438,57.38492063,124.92,124.86,57.5270822]
[1741874954647,139.98492063,124.93,124.87,57.5270822]
[1741874954937,57.38492063,124.92,124.87,57.5270822]
[1741874955233,57.38492063,124.92,124.87,0.14216157]
[1741874955541,148.01972063,124.93,124.87,57.5270822]
[1741874955724,148.01972063,124.93,124.88,57.38492063]
[1741874956123,0.03,124.93,124.91,57.38492063]
[1741874956330,0.03,124.93,124.92,76.31889263]
[1741874956937,0.03,124.93,124.92,84.32399263]
[1741874957442,0.03,124.93,124.92,76.31889263]
[1741874957639,0.03,124.93,124.92,57.5270822]
[1741874957934,0.03,124.93,124.9,57.38492063]
[1741874958139,0.03,124.93,124.89,9.34]
[1741874958819,57.41492063,124.93,124.87,57.38492063]
[1741874959021,65.39002063,124.92,124.87,57.38492063]
[1741874959330,8.0051,124.92,124.87,57.38492063]
[1741874959525,8.0347,124.93,124.88,57.38492063]
[1741874959737,65.41962063,124.93,124.87,57.38492063]
[1741874960033,8.0347,124.93,124.87,57.5270822]
[1741874960416,57.38492063,124.92,124.87,0.14216157]
[1741874960912,57.41492063,124.93,124.87,57.5270822]
[1741874961533,57.38492063,124.92,124.87,57.5270822]
[1741874961720,57.38492063,124.9,124.86,0.14216157]
[1741874961914,57.38492063,124.89,124.84,0.063]
[1741874962115,82.63,124.93,124.85,57.38492063]
[1741874962339,82.6,124.92,124.87,57.38492063]
[1741874962531,139.98492063,124.92,124.86,57.66924377]
[1741874962836,139.98492063,124.92,124.86,57.5270822]
[1741874963040,8.0057,124.91,124.87,57.38492063]
[1741874963535,8.0057,124.91,124.86,57.5270822]
[1741874964415,8.0057,124.91,124.86,0.14216157]
[1741874964737,8.0345,124.93,124.89,57.38492063]
[1741874965039,0.03,124.93,124.9,57.38492063]
[1741874965422,0.03,124.93,124.9,0.14216157]
[1741874965821,0.03,124.93,124.84,0.063]
[1741874966117,57.38492063,124.87,124.84,0.063]
[1741874966324,57.38492063,124.86,124.84,0.063]
[1741874966627,57.38492063,124.85,124.84,0.063]
[1741874967037,1.6631,124.86,124.84,0.063]
[1741874967246,65.39312063,124.88,124.84,0.20516157]
[1741874967777,8.0082,124.88,124.84,57.44792063]
[1741874967952,82.6,124.89,124.84,57.44792063]
[1741874968244,139.98492063,124.89,124.84,57.44792063]
[1741874968618,82.6,124.89,124.85,0.14216157]
[1741874968859,82.6,124.89,124.86,57.38492063]
[1741874969742,82.6,124.89,124.84,8.35732314]
[1741874969931,82.6,124.89,124.86,57.38492063]
[1741874970132,8.0053,124.92,124.86,57.38492063]
[1741874970333,65.39022063,124.92,124.86,57.38492063]
[1741874970934,57.38492063,124.91,124.86,57.38492063]
[1741874971523,57.38492063,124.91,124.84,57.5900822]
[1741874971524,57.38492063,124.9,124.84,57.5900822]
[1741874971847,57.38492063,124.89,124.84,0.20516157]
[1741874972340,57.38492063,124.89,124.84,57.5900822]
[1741874972543,57.38492063,124.86,124.84,0.063]
[1741874972849,57.38492063,124.87,124.84,0.063]
[1741874973025,14.4833,124.93,124.85,57.5270822]
[1741874973332,14.4833,124.93,124.85,0.14216157]
[1741874973333,57.38492063,124.9,124.85,0.14216157]
[1741874973521,57.38492063,124.88,124.84,0.063]
[1741874973716,18.64964886,124.91,124.84,0.063]
[1741874973945,57.38492063,124.86,124.84,0.063]
[1741874974749,57.38492063,124.85,124.84,0.063]
[1741874974951,1.5734,124.87,124.84,0.063]
[1741874975128,65.39392063,124.86,124.84,0.063]
[1741874975448,57.38492063,124.86,124.84,0.063]
[1741874976854,65.39392063,124.86,124.84,0.063]
[1741874977039,57.38492063,124.85,124.84,0.063]
[1741874977226,65.39452063,124.85,124.84,0.063]
[1741874977540,84.18633106,124.85,124.84,0.063]
[1741874977751,90.31203106,124.85,124.84,0.063]
[1741874977938,14.1353,124.85,124.84,0.063]
[1741874978134,90.31203106,124.85,124.84,0.063]
[1741874979541,18.64964886,124.84,124.83,0.063]
[1741874979847,76.17673106,124.84,124.83,0.063]
[1741874980056,76.03456949,124.84,124.83,0.063]
[1741874980829,76.17673106,124.84,124.83,0.063]
[1741874981043,85.51673106,124.84,124.83,0.063]
[1741874981449,93.52693106,124.84,124.83,0.063]
[1741874982240,74.47796199,124.84,124.83,0.063]
[1741874983144,78.44102902,124.84,124.83,0.063]
[1741874983956,38.33595156,124.79,124.73,219.9398]
[1741874984128,38.33595156,124.78,124.73,46.41625156]
[1741874984333,38.33595156,124.78,124.73,8.0803]
[1741874984530,38.33595156,124.78,124.73,46.41625156]
[1741874984959,20.0,124.81,124.75,38.33595156]
[1741874985160,38.33595156,124.8,124.75,38.33595156]
[1741874985459,38.33595156,124.8,124.74,38.47811313]
[1741874985762,38.33595156,124.79,124.74,0.14216157]
[1741874985938,82.6,124.83,124.77,38.33595156]
[1741874986142,82.6,124.83,124.79,38.33595156]
[1741874986441,120.93595156,124.86,124.8,38.33595156]
[1741874986644,0.03,124.9,124.84,38.33595156]
[1741874986645,82.6,124.89,124.84,38.33595156]
[1741874986954,82.6,124.89,124.82,0.14216157]
[1741874986955,0.03,124.9,124.85,38.33595156]
[1741874987457,38.33595156,124.89,124.83,0.14216157]
[1741874987666,38.33595156,124.87,124.81,38.33595156]
[1741874988039,46.34425156,124.87,124.81,46.34755156]
[1741874988345,57.45403947,124.86,124.81,57.45403947]
[1741874988750,8.0083,124.87,124.78,6.1546]
[1741874989045,57.45403947,124.84,124.78,57.45403947]
[1741874989442,57.45403947,124.84,124.79,57.45403947]
[1741874989653,57.45403947,124.85,124.8,57.45403947]
[1741874989955,8.0096,124.85,124.79,57.45403947]
[1741874990160,65.46363947,124.85,124.79,65.46743947]
[1741874990360,57.45403947,124.84,124.78,57.45403947]
[1741874990562,57.45403947,124.82,124.76,57.45403947]
[1741874990735,57.45403947,124.82,124.77,57.45403947]
[1741874991136,57.45403947,124.83,124.77,57.45403947]
[1741874991360,57.45403947,124.83,124.78,57.45403947]
[1741874991565,57.45403947,124.81,124.75,0.28432314]
[1741874991739,57.45403947,124.82,124.77,0.14216157]
[1741874991940,57.45403947,124.82,124.76,57.59620104]
[1741874992258,57.45403947,124.82,124.76,65.61150104]
[1741874993356,57.45403947,124.81,124.75,57.45403947]
[1741874993562,57.45403947,124.8,124.74,71.52473947]
[1741874993855,8.0116,124.82,124.74,57.45403947]
[1741874993856,57.45403947,124.79,124.74,57.45403947]
[1741874994239,57.45403947,124.8,124.74,57.45403947]
[1741874994438,57.45403947,124.79,124.74,57.45403947]
[1741874994853,57.45403947,124.79,124.74,0.14216157]
[1741874995563,8.0141,124.78,124.73,581.45703947]
[1741874995762,8.0128,124.8,124.74,57.45403947]
[1741874996060,57.45403947,124.79,124.74,0.14216157]
[1741874996258,57.45403947,124.79,124.74,57.59620104]
[1741874996564,57.45403947,124.79,124.73,269.45703947]
[1741874997133,57.45403947,124.79,124.73,277.47433947]
[1741874997339,65.46683947,124.8,124.74,57.45403947]
[1741874997787,57.45403947,124.79,124.73,269.45703947]
[1741874997959,57.45403947,124.79,124.74,57.45403947]
[1741874998256,57.45403947,124.79,124.73,269.45703947]
[1741874998650,57.45403947,124.79,124.73,65.53403947]
[1741874999350,57.45403947,124.79,124.74,57.45403947]
[1741874999859,65.46763947,124.79,124.74,65.47033947]
[1741875000057,82.6,124.81,124.75,57.45403947]
[1741875000249,57.45403947,124.8,124.74,8.0163]
[1741875000450,57.45403947,124.8,124.75,57.45403947]
[1741875000766,84.1367,124.84,124.78,57.59620104]
[1741875000952,1.5367,124.84,124.8,57.59620104]
[1741875001147,9.5469,124.84,124.79,57.45403947]
[1741875001339,67.00093947,124.84,124.79,57.45403947]
[1741875001666,67.00103947,124.84,124.79,57.45403947]
[1741875002053,58.99073947,124.84,124.78,8.15616157]
[1741875002239,0.03,124.86,124.81,57.45403947]
[1741875002442,0.03,124.86,124.85,57.45403947]
[1741875002642,136.8,124.82,124.74,20.0415]
[1741875002947,8.039,124.86,124.79,57.45403947]
[1741875003142,8.039,124.86,124.78,0.14216157]
[1741875003143,57.48403947,124.86,124.8,57.59620104]
[1741875003354,0.03,124.86,124.81,57.45403947]
[1741875003551,0.03,124.86,124.8,0.14216157]
[1741875003552,57.45403947,124.85,124.8,0.14216157]
[1741875003967,0.03,124.86,124.81,8.0121]
[1741875004262,57.45403947,124.85,124.79,312.0]
[1741875004463,57.45403947,124.85,124.8,0.14216157]
[1741875004661,57.45403947,124.83,124.75,20.04]
[1741875004843,57.45403947,124.79,124.74,8.15876157]
[1741875005045,57.45403947,124.79,124.74,0.14216157]
[1741875005239,66.79403947,124.82,124.76,57.45403947]
[1741875005550,57.45403947,124.79,124.74,57.45403947]
[1741875005745,57.45403947,124.79,124.74,57.59620104]
[1741875005958,65.46743947,124.79,124.74,65.61270104]
[1741875006168,65.46743947,124.79,124.74,8.15866157]
[1741875006355,57.45403947,124.77,124.73,0.063]
[1741875006860,57.45403947,124.78,124.73,0.063]
[1741875007640,57.45403947,124.74,124.73,0.063]
[1741875008257,46.3909289,124.75,124.73,0.063]
[1741875008662,38.3745289,124.74,124.73,0.063]
[1741875009572,179.51420666,124.74,124.73,0.063]
[1741875009756,82.6,124.73,124.71,0.063]
[1741875009943,38.3745289,124.72,124.71,0.063]
[1741875010146,82.6,124.73,124.71,0.063]
[1741875010353,120.9745289,124.73,124.71,0.063]
[1741875010575,38.3745289,124.72,124.71,0.063]
[1741875011370,1.5155,124.74,124.71,0.063]
[1741875011559,38.3745289,124.75,124.71,0.063]
[1741875011757,38.3745289,124.74,124.71,0.063]
[1741875011959,38.3745289,124.73,124.71,0.063]
[1741875012805,38.3745289,124.72,124.71,0.063]
[1741875014257,82.6,124.74,124.71,0.063]
[1741875014560,38.3745289,124.72,124.71,0.063]
[1741875015279,118.34678767,124.74,124.71,0.063]
[1741875015458,38.3745289,124.73,124.71,0.063]
[1741875015775,38.3745289,124.72,124.71,0.063]
[1741875015954,18.64964886,124.71,124.7,0.063]
[1741875016157,146.7252981,124.71,124.7,0.063]
[1741875016357,119.91488767,124.71,124.7,0.063]
[1741875016565,127.93348767,124.71,124.7,0.063]
[1741875016858,119.91488767,124.71,124.7,0.063]
[1741875017562,127.93348767,124.71,124.7,0.063]
[1741875017763,81.54035877,124.71,124.7,0.063]
[1741875017962,119.91488767,124.71,124.7,0.063]
[1741875018682,127.93348767,124.71,124.7,0.063]
[1741875019683,146.58313653,124.71,124.7,0.063]
[1741875020482,81.54035877,124.71,124.7,0.063]
[1741875020782,0.14216157,124.75,124.7,0.063]
[1741875020783,38.3745289,124.75,124.7,0.063]
[1741875020970,38.3745289,124.75,124.7,38.4375289]
[1741875021486,38.3745289,124.73,124.7,0.063]
[1741875021775,13.59599286,124.76,124.7,0.063]
[1741875021982,38.3745289,124.73,124.7,0.063]
[1741875022476,13.59599286,124.76,124.7,0.063]
[1741875022664,38.3745289,124.73,124.7,0.063]
[1741875023070,13.59599286,124.76,124.7,0.063]
[1741875023277,38.3745289,124.74,124.7,0.063]
[1741875024396,13.59599286,124.76,124.71,8.0186]
[1741875024397,1.5094,124.76,124.71,8.0186]
[1741875024558,38.3745289,124.75,124.71,8.0186]
[1741875024885,79.97225877,124.77,124.71,46.3931289]
[1741875025053,38.3745289,124.79,124.74,38.51669047]
[1741875025257,38.3745289,124.81,124.75,38.3745289]
[1741875025677,38.3745289,124.8,124.74,350.51669047]
[1741875026161,38.3745289,124.75,124.71,8.0186]
[1741875026362,87.98605877,124.79,124.72,0.14216157]
[1741875026678,38.3745289,124.75,124.71,8.0186]
[1741875026865,87.98605877,124.79,124.7,8.0819]
[1741875026866,38.3745289,124.74,124.7,8.0819]
[1741875027070,38.3745289,124.75,124.7,8.0819]
[1741875027274,18.64964886,124.78,124.7,46.4564289]
[1741875027488,38.3745289,124.75,124.7,46.4564289]
[1741875027817,38.3745289,124.76,124.71,0.14216157]
[1741875027974,0.03,124.84,124.79,20.0]
[1741875028286,0.03,124.84,124.82,0.14216157]
[1741875028586,0.03,124.84,124.82,8.15356157]
[1741875028886,0.03,124.84,124.82,46.52809047]
[1741875029061,0.03,124.84,124.83,38.51669047]
[1741875029262,0.03,124.84,124.83,57.3085009]
[1741875029585,0.03,124.9,124.83,57.3085009]
[1741875029791,0.03,124.9,124.85,57.3085009]
[1741875029972,0.03,124.9,124.89,57.3085009]
[1741875030163,0.03,124.9,124.89,66.6485009]
[1741875030492,0.03,124.9,124.89,74.99370056]
[1741875030875,0.03,124.9,124.89,93.64334942]
[1741875031280,12.15742751,124.93,124.9,18.933972]
[1741875031466,0.03,124.93,124.9,18.933972]
[1741875032286,0.03,124.93,124.92,77.50453899]
[1741875032468,0.03,124.93,124.92,389.50453899]
[1741875033281,0.03,124.93,124.92,408.29634942]
[1741875033660,0.03,124.93,124.92,416.30144942]
[1741875034968,0.03,124.93,124.92,408.29634942]
[1741875035306,0.03,124.93,124.92,417.63634942]
[1741875035592,0.03,124.93,124.92,408.29634942]
[1741875035891,0.03,124.93,124.92,425.64144942]
[1741875036485,0.03,124.93,124.92,417.63634942]
[1741875036784,0.03,124.93,124.92,77.64670056]
[1741875037004,0.03,124.93,124.92,0.14216157]
[1741875037292,0.03,124.93,124.92,57.64670056]
[1741875038195,0.03,124.93,124.92,57.50453899]
[1741875039780,0.03,124.93,124.92,57.64670056]
[1741875040175,0.03,124.93,124.92,57.50453899]
[1741875040380,0.03,124.93,124.92,57.64670056]
[1741875041271,0.03,124.93,124.92,0.28432314]
[1741875041487,0.03,124.93,124.91,57.36237742]
[1741875041870,0.03,124.93,124.92,57.36237742]
[1741875042092,0.03,124.93,124.92,57.50453899]
[1741875042276,0.03,124.93,124.92,76.29634942]
[1741875042670,0.03,124.93,124.92,84.30144942]
[1741875042871,86.31605877,125.04,124.92,84.30144942]
[1741875042872,7.9923,125.12,125.03,20.0]
[1741875043187,0.03,125.06,125.05,0.28432314]
[1741875043380,0.03,125.06,125.05,57.50453899]
[1741875043585,0.03,125.06,125.03,0.14216157]
[1741875043967,0.03,125.06,125.01,57.36237742]
[1741875044169,0.03,125.06,125.02,57.36237742]
[1741875044367,0.03,125.06,125.01,0.14216157]
[1741875044368,0.03,125.06,125.03,57.36237742]
[1741875044567,0.03,125.06,125.01,57.50453899]
[1741875044770,0.03,125.06,125.0,57.36237742]
[1741875045377,0.03,125.06,124.97,0.14216157]
[1741875045698,0.03,125.06,124.99,57.36237742]
[1741875045699,58.88867742,125.05,124.99,57.36237742]
[1741875045892,57.36237742,125.04,124.97,0.14216157]
[1741875046280,57.36237742,125.04,124.98,57.36237742]
[1741875046683,57.36237742,125.03,124.97,57.36237742]
[1741875047000,57.36237742,125.03,124.98,57.36237742]
[1741875047182,7.9974,125.04,124.98,57.36237742]
[1741875047498,57.36237742,125.03,124.97,57.36237742]
[1741875047808,137.33463619,125.02,124.93,6.2483]
[1741875047977,57.36237742,125.01,124.95,57.36237742]
[1741875048301,79.97225877,125.02,124.98,57.36237742]
[1741875048681,87.97115877,125.02,124.97,57.36237742]
[1741875048877,87.97115877,125.02,124.93,18.64964886]
[1741875048878,145.33353619,125.02,124.93,18.64964886]
[1741875049075,145.33353619,125.02,124.96,57.36237742]
[1741875049301,145.33353619,125.02,124.92,0.14216157]
[1741875049302,57.36237742,124.99,124.92,0.14216157]
[1741875049475,57.36237742,124.99,124.93,57.36237742]
[1741875049679,57.36237742,124.97,124.91,211.74]
[1741875049880,57.36237742,124.98,124.93,57.36237742]
[1741875050178,57.36237742,124.99,124.94,57.36237742]
[1741875050399,79.97225877,125.01,124.95,57.36237742]
[1741875050692,8.0006,124.99,124.95,57.36237742]
[1741875050874,8.0006,124.99,124.94,57.36237742]
[1741875051274,8.0006,124.99,124.95,57.36237742]
[1741875051697,8.0006,124.99,124.94,57.36237742]
[1741875052088,65.36297742,124.99,124.92,0.28432314]
[1741875052281,65.36297742,124.99,124.94,57.36237742]
[1741875052688,8.0006,124.99,124.94,57.36237742]
[1741875053003,8.0006,124.99,124.92,18.933972]
[1741875053194,8.0006,124.99,124.94,57.36237742]
[1741875053391,85.36457742,124.99,124.92,0.14216157]
[1741875053599,85.36457742,124.99,124.94,57.36237742]
[1741875053785,8.0006,124.99,124.95,57.36237742]
[1741875054201,8.0006,124.99,124.96,57.36237742]
[1741875054803,8.0,125.0,124.96,57.36237742]
[1741875055500,8.0,125.0,124.95,57.42537742]
[1741875055685,28.0,125.0,124.95,57.42537742]
[1741875055881,85.36237742,125.0,124.95,57.42537742]
[1741875056301,57.36237742,124.99,124.95,0.063]
[1741875056602,28.0,125.0,124.95,57.42537742]
[1741875056805,85.36237742,125.0,124.95,0.063]
[1741875057000,28.0,125.0,124.95,57.42537742]
[1741875057197,57.36237742,124.99,124.95,0.063]
[1741875058481,85.36237742,125.0,124.95,57.42537742]
[1741875058791,85.36237742,125.0,124.95,0.063]
[1741875059190,28.0,125.0,124.95,0.063]
[1741875059379,85.36237742,125.0,124.95,0.063]
[1741875060081,85.36237742,125.0,124.95,57.42537742]
[1741875060283,57.36237742,124.99,124.95,0.063]
[1741875060485,58.91107742,124.96,124.9,0.063]
[1741875060688,57.36237742,124.92,124.9,0.063]
[1741875060884,57.36237742,124.91,124.9,0.063]
[1741875061099,57.36237742,124.92,124.9,0.063]
[1741875061302,57.36237742,124.93,124.9,0.063]
[1741875061511,66.68237742,124.94,124.9,0.063]
[1741875061805,79.97225877,124.95,124.91,57.36237742]
[1741875062001,1.5487,124.96,124.93,57.36237742]
[1741875062210,60.50640769,124.99,124.93,57.36237742]
[1741875062394,8.0012,124.98,124.93,57.36237742]
[1741875062709,68.50720769,124.99,124.94,57.36237742]
[1741875062902,57.36237742,124.97,124.91,0.14216157]
[1741875063085,57.36237742,124.97,124.92,57.36237742]
[1741875063406,57.36237742,124.95,124.9,57.42537742]
[1741875063882,57.36237742,124.94,124.9,0.063]
[1741875064082,79.15605655,124.97,124.9,0.063]
[1741875064304,57.36237742,124.95,124.9,57.42537742]
[1741875064514,57.36237742,124.94,124.9,0.063]
[1741875064808,57.36237742,124.93,124.9,0.063]